bitfinex/quotes_SOLUSD_20251206
["timestamp","ask_amount","ask_price","bid_price","bid_amount"]
[1764980604557,18.79275351,133.09,133.05,71.65]
[1764980604757,18.79275351,133.09,133.06,0.69]
[1764980604972,18.79275351,133.09,133.07,7.51484181]
[1764980605158,8.2026869,133.11,133.07,7.51484181]
[1764980605361,30.76671232,133.11,133.07,8.20484181]
[1764980605569,0.69,133.1,133.07,8.20484181]
[1764980606385,30.76671232,133.11,133.08,0.69]
[1764980607677,0.69,133.1,133.08,0.69]
[1764980607982,0.69,133.1,133.07,8.20451537]
[1764980609186,23.25402542,133.11,133.08,0.69]
[1764980609388,0.69,133.1,133.08,0.69]
[1764980609759,23.25402542,133.11,133.08,0.69]
[1764980609957,0.69,133.11,133.08,0.69]
[1764980611065,8.20264771,133.11,133.07,8.20451537]
[1764980611564,0.69,133.1,133.07,8.20451537]
[1764980612183,0.69,133.1,133.07,70.90451537]
[1764980612879,22.56402542,133.11,133.07,70.21451537]
[1764980613193,31.71232843,133.12,133.08,0.69]
[1764980613486,23.45232843,133.12,133.08,0.69]
[1764980613689,0.89,133.12,133.08,0.69]
[1764980613990,0.89,133.12,133.08,8.95]
[1764980614171,0.89,133.12,133.09,0.69]
[1764980614377,0.2,133.12,133.09,0.69]
[1764980614581,0.2,133.12,133.09,8.20357715]
[1764980614765,8.40226328,133.12,133.08,8.26]
[1764980614961,8.40226328,133.12,133.08,8.95]
[1764980615166,0.69,133.11,133.08,8.26]
[1764980616182,23.25402542,133.11,133.08,8.26]
[1764980616799,30.76666226,133.11,133.08,8.26]
[1764980616997,0.69,133.1,133.08,8.26]
[1764980617697,0.69,133.1,133.07,8.20444891]
[1764980620699,8.26,133.09,133.04,0.72]
[1764980620911,27.04931965,133.09,133.04,0.72]
[1764980621198,0.72,133.08,133.04,62.7]
[1764980621388,0.72,133.08,133.02,71.68]
[1764980621574,23.2925142,133.08,133.02,71.68]
[1764980621976,16.49533475,133.07,133.02,16.49748626]
[1764980622177,32.80419875,133.07,133.02,7.51748626]
[1764980622399,0.72,133.06,133.02,7.51748626]
[1764980622598,0.72,133.06,133.01,8.23805407]
[1764980622993,22.57421272,133.05,133.01,8.23805407]
[1764980623381,0.72,133.04,133.01,8.23805407]
[1764980623580,0.72,133.04,132.99,0.72]
[1764980623801,0.72,133.04,132.99,8.23888421]
[1764980624100,8.23662251,133.04,132.99,8.23888421]
[1764980624600,0.72,133.03,132.99,8.23888421]
[1764980629482,8.95,133.04,133.0,0.65]
[1764980629781,0.69,133.04,133.0,0.65]
[1764980630107,23.26421272,133.05,133.0,0.65]
[1764980630280,0.69,133.06,133.0,0.65]
[1764980630479,23.2625142,133.06,133.0,0.65]
[1764980631400,23.2625142,133.06,133.01,7.51823171]
[1764980631799,0.69,133.05,133.02,0.65]
[1764980633630,0.69,133.05,133.02,8.16739915]
[1764980636040,0.69,133.05,133.02,70.86739915]
[1764980637934,0.69,133.05,133.02,70.21739915]
[1764980638141,0.69,133.05,133.02,70.86739915]
[1764980638430,8.20616963,133.05,133.02,62.7]
[1764980638938,0.69,133.04,133.02,62.7]
[1764980640138,7.5171014,133.03,133.02,62.7]
[1764980640733,8.2071014,133.03,133.02,62.7]
[1764980641540,7.5171014,133.03,133.02,62.7]
[1764980641733,8.2071014,133.03,133.02,62.7]
[1764980641930,8.2071014,133.03,133.0,63.35]
[1764980645042,7.5171014,133.03,133.0,63.35]
[1764980645250,0.69,133.02,133.0,63.35]
[1764980648642,7.5171014,133.03,133.0,63.35]
[1764980648946,8.2171014,133.03,133.0,63.35]
[1764980655146,7.5171014,133.03,133.0,63.35]
[1764980655353,0.7,133.02,133.0,63.35]
[1764980655546,7.5171014,133.03,133.0,63.35]
[1764980655746,8.2171014,133.03,133.0,63.35]
[1764980660856,0.7,133.02,133.0,63.35]
[1764980661358,0.7,133.02,133.0,62.7]
[1764980662375,16.52,133.04,133.01,0.72]
[1764980662575,0.7,133.03,133.01,63.42]
[1764980663296,0.7,133.04,133.01,63.42]
[1764980663474,16.52,133.05,133.02,0.72]
[1764980663793,17.22,133.05,133.02,63.42]
[1764980664085,0.7,133.05,133.02,63.42]
[1764980664288,24.52448344,133.06,133.03,0.72]
[1764980664474,0.7,133.05,133.03,0.72]
[1764980664682,0.7,133.05,133.02,63.42]
[1764980670399,8.21598742,133.05,133.02,62.7]
[1764980670862,0.7,133.04,133.02,62.7]
[1764980671307,23.2759115,133.04,133.02,62.7]
[1764980671676,0.7,133.03,133.02,62.7]
[1764980672597,0.7,133.03,133.0,70.21868681]
[1764980674971,0.7,133.03,133.0,70.93868681]
[1764980676071,8.21718828,133.03,133.0,63.42]
[1764980676479,0.7,133.02,133.0,62.7]
[1764980676690,0.7,133.02,132.99,79.19923167]
[1764980677382,8.21773314,133.02,132.97,63.42]
[1764980677585,0.7,133.01,132.97,63.42]
[1764980678688,0.7,133.01,132.97,70.94028648]
[1764980681013,8.21829126,133.01,132.97,70.94028648]
[1764980681310,0.67,133.0,132.97,70.94028648]
[1764980682219,8.18890296,133.0,132.97,62.7]
[1764980682604,0.67,132.99,132.97,62.7]
[1764980683511,8.18890296,133.0,132.97,63.37]
[1764980685915,30.76481446,133.0,132.97,63.37]
[1764980687323,30.76481446,133.0,132.97,70.8904917]
[1764980687526,8.18814064,133.02,132.98,0.67]
[1764980687717,22.58100937,133.01,132.98,63.37]
[1764980688119,24.49619506,133.03,132.99,0.67]
[1764980688426,22.57761053,133.02,132.99,0.67]
[1764980689001,22.57761053,133.02,132.99,8.1888424]
[1764980689624,23.24761053,133.02,132.99,8.1888424]
[1764980690223,0.67,133.03,133.0,8.18879154]
[1764980690423,23.82505463,133.05,133.0,8.18879154]
[1764980690621,22.57761053,133.03,133.0,70.88879154]
[1764980690818,22.57761053,133.03,133.0,79.14879154]
[1764980691015,23.24761053,133.03,133.0,79.14879154]
[1764980691614,22.57761053,133.03,133.01,0.67]
[1764980691814,22.57761053,133.03,133.01,8.18816912]
[1764980692225,0.67,133.04,133.01,8.18816912]
[1764980692432,23.2459115,133.04,133.01,8.18816912]
[1764980693727,23.2459115,133.04,133.01,70.88816912]
[1764980694037,0.67,133.03,133.01,62.7]
[1764980695117,22.5759115,133.04,133.01,63.41]
[1764980695437,23.2559115,133.04,133.01,63.41]
[1764980696129,0.68,133.03,133.01,63.41]
[1764980696711,0.68,133.03,133.01,62.7]
[1764980697128,22.5759115,133.04,133.01,62.7]
[1764980697637,0.68,133.03,133.01,62.7]
[1764980697935,23.2559115,133.04,133.01,63.41]
[1764980699333,22.5759115,133.04,133.01,70.21800578]
[1764980699533,7.51619063,133.05,133.02,0.71]
[1764980699730,0.68,133.04,133.02,0.71]
[1764980700414,0.68,133.04,133.01,70.92800578]
[1764980701339,22.57421272,133.05,133.02,8.22741066]
[1764980701537,22.57421272,133.05,133.03,0.71]
[1764980701745,7.51332322,133.1,133.03,63.41]
[1764980701939,0.68,133.06,133.03,0.71]
[1764980702525,0.68,133.06,133.01,16.48780519]
[1764980703126,22.57081593,133.05,133.01,16.48780519]
[1764980703323,22.57081593,133.05,133.01,15.77780519]
[1764980703526,0.68,133.04,133.01,15.77780519]
[1764980703844,0.68,133.04,133.01,7.51780519]
[1764980704345,0.68,133.04,132.99,16.48921588]
[1764980704516,8.19687778,133.04,132.99,16.48921588]
[1764980705044,0.68,133.03,132.99,7.51921588]
[1764980706447,0.68,133.03,132.98,7.5199278]
[1764980706633,0.68,133.03,132.98,8.2299278]
[1764980706826,0.68,133.03,132.99,0.71]
[1764980707552,0.68,133.03,132.98,8.2299278]
[1764980707848,8.1973256,133.03,132.98,8.2299278]
[1764980708052,0.68,133.02,132.98,7.5199278]
[1764980708345,23.25930982,133.02,132.98,8.2299278]
[1764980709052,0.66,133.01,132.98,8.2299278]
[1764980709344,0.66,133.01,132.98,70.9299278]
[1764980711551,23.82560483,133.04,132.99,0.71]
[1764980711730,24.48560483,133.04,132.99,63.41]
[1764980711931,23.23761053,133.03,132.99,63.41]
[1764980712252,23.23761053,133.03,133.0,0.71]
[1764980712637,23.23761053,133.03,133.0,8.22840898]
[1764980712949,22.57761053,133.03,133.01,0.71]
[1764980713246,23.23761053,133.03,133.0,8.22840898]
[1764980716040,23.23761053,133.03,133.0,70.92840898]
[1764980720553,0.66,133.03,133.0,70.92840898]
[1764980724261,22.5759115,133.04,133.0,70.21840898]
[1764980724450,23.2359115,133.04,133.01,0.71]
[1764980725681,0.66,133.03,133.0,70.21840898]
[1764980725868,22.5759115,133.04,133.01,8.22818097]
[1764980726046,23.2359115,133.04,133.01,8.22818097]
[1764980727879,23.2359115,133.04,133.01,70.92818097]
[1764980730378,22.5759115,133.04,133.01,70.21818097]
[1764980730547,0.66,133.07,133.02,0.71]
[1764980730750,23.23081593,133.07,133.02,63.41]
[1764980730959,30.74607428,133.07,133.02,63.41]
[1764980731172,30.74607428,133.07,133.03,0.71]
[1764980731363,30.08607428,133.07,133.03,0.71]
[1764980731668,8.17444782,133.08,133.03,71.67]
[1764980731865,30.74356574,133.08,133.03,71.67]
[1764980732088,0.66,133.07,133.04,0.71]
[1764980732458,0.66,133.07,133.04,8.22620172]
[1764980736286,0.66,133.07,133.04,7.51620172]
[1764980736585,8.17485422,133.07,133.03,78.47689167]
[1764980736783,30.74567015,133.07,133.03,79.18689167]
[1764980736983,0.66,133.06,133.03,78.47689167]
[1764980737384,0.66,133.06,133.03,79.18689167]
[1764980738805,8.1754435,133.06,133.03,70.96]
[1764980739107,8.1754435,133.06,133.03,62.7]
[1764980739291,0.65,133.05,133.03,62.7]
[1764980740891,8.16603977,133.05,133.03,62.7]
[1764980741406,0.65,133.04,133.03,62.7]
[1764980742114,8.16653638,133.04,133.0,70.21877979]
[1764980742401,30.74244788,133.04,133.0,70.21877979]
[1764980742598,0.65,133.03,133.0,70.21877979]
[1764980743117,23.2259115,133.03,133.0,70.21877979]
[1764980743613,0.65,133.02,132.99,70.21924951]
[1764980743985,0.65,133.02,132.99,62.7]
[1764980744928,0.65,133.02,132.98,16.45972026]
[1764980744929,0.65,133.02,132.98,79.15972026]
[1764980745081,8.16779067,133.02,132.98,79.15972026]
[1764980745283,0.65,133.01,132.98,70.96]
[1764980745584,0.65,133.01,132.98,62.7]
[1764980747317,8.16868724,133.01,132.98,62.7]
[1764980747533,0.65,133.0,132.96,16.46084233]
[1764980748328,0.65,133.0,132.97,0.65]
[1764980750712,0.65,133.0,132.96,15.78084233]
[1764980750915,8.16897229,133.0,132.96,78.48084233]
[1764980751211,8.16897229,133.0,132.96,70.96]
[1764980751515,0.66,132.99,132.96,70.96]
[1764980751718,16.968864,133.02,132.97,8.17046364]
[1764980752218,0.66,133.01,132.98,0.65]
[1764980754929,0.66,133.01,132.98,8.16992347]
[1764980756421,0.66,133.01,132.97,7.52049334]
[1764980756616,0.66,133.01,132.99,0.65]
[1764980756821,0.66,133.01,132.98,0.65]
[1764980757627,0.66,133.01,132.98,63.35]
[1764980758815,0.66,133.01,132.98,70.86988057]
[1764980759611,24.03730199,133.03,132.98,70.21988057]
[1764980759807,0.66,133.02,132.99,0.65]
[1764980760616,7.51730199,133.03,132.99,0.65]
[1764980760816,8.17730199,133.03,132.99,0.65]
[1764980761021,8.17730199,133.03,132.99,63.35]
[1764980761442,0.66,133.02,132.99,62.7]
[1764980762926,0.66,133.02,132.99,70.86935893]
[1764980765137,0.66,133.02,132.99,70.21935893]
[1764980765340,0.66,133.02,133.0,0.65]
[1764980766538,0.66,133.05,133.0,79.12870087]
[1764980766728,0.66,133.05,133.01,0.65]
[1764980767517,0.66,133.07,133.01,165.75]
[1764980767934,0.66,133.07,133.02,0.65]
[1764980768245,0.66,133.07,133.03,8.26]
[1764980768447,0.66,133.07,133.03,78.47659662]
[1764980768748,0.66,133.07,133.03,79.13659662]
[1764980769248,0.66,133.07,133.04,0.66]
[1764980769622,7.51462187,133.08,133.04,0.66]
[1764980769826,0.71,133.08,133.04,0.66]
[1764980770241,0.71,133.08,133.04,63.36]
[1764980770442,0.71,133.08,133.04,70.87607702]
[1764980772453,16.308864,133.09,133.05,8.92]
[1764980772656,0.71,133.09,133.05,8.92]
[1764980772949,0.71,133.09,133.06,0.66]
[1764980773254,0.71,133.08,133.05,8.92]
[1764980774055,0.71,133.08,133.03,7.51697596]
[1764980774251,0.71,133.08,133.04,7.51652766]
[1764980774461,0.71,133.08,133.05,0.66]
[1764980774646,0.71,133.08,133.04,8.17652766]
[1764980775861,8.22455708,133.08,133.03,7.51700446]
[1764980776053,24.53342108,133.08,133.03,7.51700446]
[1764980776260,0.71,133.07,133.03,7.51700446]
[1764980776463,8.22529947,133.07,133.03,7.51700446]
[1764980776766,8.22529947,133.07,133.02,15.77758988]
[1764980777062,8.22529947,133.07,133.01,7.51804154]
[1764980777063,0.71,133.06,133.01,7.51804154]
[1764980777557,0.71,133.06,133.01,8.17804154]
[1764980778259,0.71,133.06,133.01,7.51804154]
[1764980778674,7.51597143,133.05,133.01,7.51804154]
[1764980779037,0.71,133.04,133.01,7.51804154]
[1764980784568,0.71,133.04,133.01,70.87804154]
[1764980785077,7.51554345,133.06,133.02,0.66]
[1764980785250,0.71,133.04,133.01,70.87804154]
[1764980787471,0.71,133.04,133.01,70.21804154]
[1764980787859,8.22655808,133.04,132.97,62.7]
[1764980788050,0.71,133.03,132.98,7.51941813]
[1764980788252,23.29100937,133.03,132.99,7.51913608]
[1764980788475,0.71,133.02,132.99,7.51913608]
[1764980788666,0.71,133.02,132.99,8.17913608]
[1764980789050,23.28930982,133.04,133.0,0.66]
[1764980789249,0.71,133.04,133.0,63.36]
[1764980789565,0.71,133.03,133.0,62.7]
[1764980792196,8.22753614,133.03,133.0,62.7]
[1764980792651,0.71,133.02,133.0,62.7]
[1764980793575,7.51653638,133.04,133.0,62.7]
[1764980793762,8.22653638,133.04,133.01,0.66]
[1764980795787,0.71,133.03,133.01,0.66]
[1764980799178,0.71,133.03,133.01,63.36]
[1764980800882,24.51498159,133.05,133.01,70.87813086]
[1764980801179,0.69,133.04,133.01,62.7]
[1764980802485,23.26930982,133.04,133.01,62.7]
[1764980802669,8.2071014,133.03,133.01,62.7]
[1764980803806,8.20766651,133.02,133.01,62.7]
[1764980804500,22.57930982,133.04,133.01,62.7]
[1764980804501,0.69,133.04,133.01,62.7]
[1764980804808,0.69,133.04,133.01,63.38]
[1764980805598,8.20669433,133.04,133.01,63.38]
[1764980811305,18.78992859,133.05,133.02,0.68]
[1764980811306,8.20597143,133.05,133.02,0.68]
[1764980811624,0.69,133.04,133.02,0.68]
[1764980812410,0.69,133.04,133.01,70.89814594]
[1764980812603,0.69,133.04,133.01,70.21814594]
[1764980812807,0.69,133.04,133.01,70.89814594]
[1764980819846,0.69,133.04,133.02,0.66]
[1764980822544,0.69,133.04,133.01,70.87814594]
[1764980822933,8.20674369,133.04,133.01,62.7]
[1764980823324,0.69,133.03,133.01,62.7]
[1764980825351,7.51766651,133.02,133.01,62.7]
[1764980826026,8.20766651,133.02,133.01,62.7]
[1764980828854,8.20766651,133.02,132.99,63.36]
[1764980835332,7.51766651,133.02,132.99,63.36]
[1764980835536,8.17766651,133.02,132.99,63.36]
[1764980844372,8.17766651,133.02,132.99,70.87931658]
[1764980845565,16.43673904,133.04,133.0,0.69]
[1764980845868,0.66,133.03,133.0,0.69]
[1764980846672,0.66,133.03,133.0,70.90858925]
[1764980850573,8.17616514,133.05,133.01,0.69]
[1764980851467,7.51616514,133.05,133.01,0.69]
[1764980851671,8.17616514,133.05,133.01,0.69]
[1764980851978,7.51616514,133.05,133.01,0.69]
[1764980852189,0.66,133.04,133.01,0.69]
[1764980852550,0.66,133.04,133.01,63.39]
[1764980852755,7.51616514,133.05,133.01,63.39]
[1764980852756,8.17616514,133.05,133.02,0.69]
[1764980853285,0.66,133.04,133.02,0.69]
[1764980853667,8.17616514,133.05,133.02,0.69]
[1764980853879,0.66,133.04,133.02,0.69]
[1764980854776,8.17616514,133.05,133.02,0.69]
[1764980855082,0.66,133.04,133.02,0.69]
[1764980855256,8.17658724,133.04,133.01,63.39]
[1764980855778,7.51603317,133.05,133.01,70.21807479]
[1764980856081,8.17603317,133.05,133.02,0.69]
[1764980858556,8.17603317,133.05,133.02,63.39]
[1764980865889,0.67,133.04,133.02,63.39]
[1764980866676,23.24421272,133.04,133.02,63.39]
[1764980871399,23.23421272,133.04,133.02,63.39]
[1764980872494,16.308864,133.07,133.03,0.66]
[1764980872695,8.17439439,133.08,133.03,63.36]
[1764980872997,30.74351231,133.08,133.04,0.66]
[1764980873497,0.66,133.07,133.04,0.66]
[1764980873673,0.66,133.07,133.04,8.17648104]
[1764980874193,0.66,133.07,133.05,0.66]
[1764980874610,30.74351231,133.08,133.05,0.66]
[1764980874894,30.08351231,133.08,133.05,0.66]
[1764980875396,30.74351231,133.08,133.05,0.66]
[1764980876195,30.08351231,133.08,133.05,0.66]
[1764980876407,30.08351231,133.08,133.05,63.36]
[1764980876686,30.74351231,133.08,133.06,0.66]
[1764980876884,30.74351231,133.08,133.06,63.36]
[1764980877690,30.08351231,133.08,133.06,63.36]
[1764980878187,8.1730036,133.11,133.07,0.66]
[1764980878379,8.1730036,133.11,133.07,63.36]
[1764980878578,22.56402542,133.11,133.07,63.36]
[1764980878887,22.56402542,133.11,133.08,0.66]
[1764980879198,23.22402542,133.11,133.08,0.66]
[1764980879393,22.56402542,133.11,133.08,0.66]
[1764980879600,22.56402542,133.11,133.08,8.17405178]
[1764980880096,0.86,133.12,133.09,0.66]
[1764980880298,23.42232843,133.12,133.09,0.66]
[1764980881410,23.42232843,133.12,133.09,8.17366283]
[1764980881621,22.76232843,133.12,133.09,8.17366283]
[1764980881905,23.42232843,133.12,133.1,0.66]
[1764980883204,23.42232843,133.12,133.09,7.51366283]
[1764980883509,0.86,133.12,133.1,0.66]
[1764980883699,23.42063169,133.12,133.1,0.66]
[1764980884082,0.86,133.12,133.1,0.66]
[1764980884278,0.2,133.12,133.1,0.66]
[1764980884904,0.2,133.12,133.1,8.17299522]
[1764980885791,0.2,133.12,133.1,70.87299522]
[1764980888408,0.2,133.12,133.1,62.7]
[1764980888613,0.86,133.12,133.1,62.7]
[1764980888805,23.42063169,133.12,133.1,62.7]
[1764980889004,0.68,133.11,133.1,62.7]
[1764980890992,23.24232843,133.11,133.1,62.7]
[1764980891807,22.56232843,133.11,133.1,62.7]
[1764980892003,22.56232843,133.11,133.1,63.39]
[1764980892395,0.2,133.12,133.1,63.39]
[1764980892597,0.2,133.12,133.11,0.69]
[1764980892795,22.76232843,133.12,133.11,0.69]
[1764980892999,0.2,133.12,133.11,8.20258357]
[1764980893618,0.2,133.12,133.11,70.90258357]
[1764980907347,0.2,133.12,133.11,73.90976321]
[1764980910438,0.2,133.12,133.11,90.21862721]
[1764980910614,0.2,133.12,133.11,7.51258357]
[1764980910814,0.2,133.12,133.11,15.77258357]
[1764980911748,0.88,133.12,133.11,15.77258357]
[1764980912061,0.88,133.12,133.11,7.51258357]
[1764980912232,0.88,133.12,133.1,7.51301948]
[1764980912430,0.68,133.11,133.1,7.51301948]
[1764980913949,0.68,133.11,133.07,18.78638658]
[1764980914134,4.08740573,133.11,133.07,18.78638658]
[1764980914518,0.68,133.1,133.07,18.78638658]
[1764980915630,0.68,133.1,133.07,7.51484181]
[1764980915827,0.68,133.1,133.06,7.51540658]
[1764980916029,3.40740573,133.09,133.06,7.51540658]
[1764980916552,0.68,133.08,133.06,7.51540658]
[1764980920663,0.66,133.11,133.07,8.93]
[1764980920971,0.66,133.1,133.07,71.63]
[1764980922674,0.66,133.1,133.08,7.51427712]
[1764980927586,0.66,133.1,133.07,78.47479039]
[1764980928658,0.66,133.1,133.07,70.96]
[1764980929388,8.17326878,133.1,133.07,70.96]
[1764980929585,8.17326878,133.1,133.07,62.7]
[1764980929785,0.66,133.09,133.07,62.7]
[1764980934071,0.66,133.11,133.08,0.66]
[1764980934695,0.66,133.11,133.08,8.17403648]
[1764980935075,0.2,133.12,133.09,8.92]
[1764980935283,0.2,133.12,133.09,63.36]
[1764980935490,0.2,133.12,133.1,8.92]
[1764980936175,0.2,133.12,133.11,0.66]
[1764980936771,0.2,133.12,133.11,8.17258357]
[1764980937401,0.86,133.12,133.1,70.96]
[1764980937674,0.86,133.12,133.1,78.47309062]
[1764980939804,0.66,133.11,133.1,78.47309062]
[1764980940191,0.86,133.12,133.1,78.47309062]
[1764980940986,0.66,133.11,133.1,78.47309062]
[1764980941590,0.66,133.11,133.1,62.7]
[1764980941996,7.71211125,133.12,133.1,62.7]
[1764980941997,0.86,133.12,133.1,62.7]
[1764980942592,0.2,133.12,133.1,62.7]
[1764980942797,0.66,133.11,133.1,62.7]
[1764980943606,0.66,133.11,133.1,70.21310372]
[1764980946216,0.2,133.12,133.1,70.21310372]
[1764980946387,0.66,133.11,133.1,70.21310372]
[1764980947310,0.2,133.12,133.1,70.87310372]
[1764980947511,0.2,133.12,133.11,0.66]
[1764980947709,0.2,133.12,133.11,8.92]
[1764980948521,0.2,133.12,133.11,16.43258357]
[1764980950717,0.2,133.12,133.11,79.13258357]
[1764980955422,0.2,133.12,133.11,16.43258357]
[1764980956632,0.2,133.12,133.11,8.17258357]
[1764980956834,0.2,133.12,133.11,16.43258357]
[1764980959532,0.2,133.12,133.11,79.13258357]
[1764980962339,0.2,133.13,133.12,71.30994492]
[1764980962518,0.2,133.13,133.12,88.32880892]
[1764980962718,0.2,133.13,133.12,198.24082815]
[1764980965321,1e-08,133.13,133.12,198.24082815]
[1764980968057,1e-08,133.13,133.12,189.43088323]
[1764980968257,1e-08,133.13,133.12,181.38201923]
[1764980968561,1e-08,133.13,133.12,78.98201923]
[1764980969057,1e-08,133.13,133.12,78.27201923]
[1764980969665,1e-08,133.13,133.12,78.98201923]
[1764980970743,1e-08,133.13,133.12,78.27201923]
[1764980971766,1e-08,133.13,133.12,78.98201923]
[1764980974973,1e-08,133.13,133.12,78.27201923]
[1764980975350,0.68000001,133.13,133.12,78.27201923]
[1764980978079,1e-08,133.13,133.12,78.27201923]
[1764980978267,1e-08,133.13,133.12,78.98201923]
[1764980979070,1e-08,133.13,133.12,78.27201923]
[1764980981177,0.66000001,133.13,133.12,78.27201923]
[1764980982957,0.66000001,133.13,133.12,70.01201923]
[1764980984669,1e-08,133.13,133.12,70.01201923]
[1764980984881,1e-08,133.13,133.12,78.27201923]
[1764980985051,1e-08,133.13,133.12,78.98201923]
[1764980991189,1e-08,133.13,133.12,78.27201923]
[1764980991965,1e-08,133.13,133.12,78.95201923]
[1764980996188,1e-08,133.13,133.12,78.27201923]
[1764980999803,1e-08,133.13,133.12,78.95201923]
[1764981000203,1e-08,133.13,133.12,78.27201923]
[1764981001905,0.72000001,133.13,133.12,78.27201923]
[1764981003006,0.72000001,133.13,133.12,78.95201923]
[1764981003007,1e-08,133.13,133.12,78.95201923]
[1764981003383,1e-08,133.13,133.12,78.27201923]
[1764981006305,0.72000001,133.13,133.12,78.27201923]
[1764981008730,0.72000001,133.13,133.12,62.5]
[1764981010333,0.72000001,133.13,133.1,70.01298036]
[1764981012090,0.72000001,133.13,133.1,97.05585038]
[1764981012296,1e-08,133.13,133.11,0.72]
[1764981012499,1e-08,133.13,133.12,8.26]
[1764981013616,1e-08,133.13,133.12,15.77201923]
[1764981014316,0.69000001,133.13,133.12,15.77201923]
[1764981015920,0.69000001,133.13,133.12,78.27201923]
[1764981017901,0.69000001,133.13,133.12,62.5]
[1764981021109,8.20145497,133.13,133.09,15.77324989]
[1764981021420,0.69000001,133.13,133.1,7.51313966]
[1764981021603,0.69,133.12,133.1,7.51313966]
[1764981022508,0.69,133.12,133.09,8.26]
[1764981022509,1e-08,133.13,133.12,7.51201923]
[1764981024818,1e-08,133.13,133.12,70.01201923]
[1764981031922,0.69000001,133.13,133.12,70.01201923]
[1764981032108,1e-08,133.13,133.12,70.01201923]
[1764981037919,1e-08,133.13,133.12,70.73201923]
[1764981041600,1e-08,133.13,133.12,79.54196415]
[1764981041823,1e-08,133.13,133.12,95.85082815]
[1764981042026,1e-08,133.13,133.12,98.8573297]
[1764981044531,0.2,133.15,133.13,62.49999999]
[1764981044723,0.2,133.15,133.14,33.37880892]
[1764981045031,0.2,133.15,133.14,34.08880892]
[1764981045233,0.2,133.15,133.14,37.09508452]
[1764981045730,1e-08,133.15,133.14,37.09508452]
[1764981046333,0.2,133.18,133.17,25.11880892]
[1764981046533,0.2,133.18,133.17,103.38800767]
[1764981046733,0.2,133.18,133.17,104.09800767]
[1764981047121,0.2,133.18,133.17,107.10337977]
[1764981048929,0.2,133.19,133.18,8.80994492]
[1764981049137,0.2,133.19,133.18,72.01994491]
[1764981049336,0.2,133.21,133.18,72.7708084]
[1764981049526,0.2,133.21,133.2,25.11880892]
[1764981049718,0.2,133.21,133.2,87.61880891]
[1764981049919,0.2,133.21,133.2,88.32880891]
[1764981050126,0.2,133.21,133.2,91.33350374]
[1764981050640,0.2,133.21,133.2,87.61880891]
[1764981050935,0.2,133.21,133.2,95.83631641]
[1764981051615,0.2,133.21,133.2,95.12631641]
[1764981051816,0.2,133.21,133.2,95.83631641]
[1764981052826,0.2,133.21,133.2,95.12631641]
[1764981053237,0.9,133.21,133.2,70.00750749]
[1764981053417,0.9,133.21,133.2,78.26750749]
[1764981053842,0.9,133.21,133.2,15.7675075]
[1764981054317,0.2,133.21,133.2,15.7675075]
[1764981054940,0.9,133.21,133.2,15.7675075]
[1764981059248,0.9,133.21,133.2,78.26750749]
[1764981060141,0.2,133.21,133.2,78.26750749]
[1764981060343,0.1,133.22,133.21,8.80994492]
[1764981060547,0.1,133.22,133.21,9.47994492]
[1764981061122,0.1,133.22,133.21,12.48463975]
[1764981061336,0.1,133.22,133.21,19.99158367]
[1764981063531,0.1,133.22,133.21,82.49158366]